fUST/lending_fUST_20240923
["ID","MTS","AMOUNT","RATE_DAILY","PERIOD"]
[338954248,1727089110541,-197.46689,0.00033399,14]
[338954249,1727089110564,-151.0,0.00033399,14]
[338954250,1727089110586,-333.576202,0.00033399,14]
[338954251,1727089110608,-333.576202,0.00033399,14]
[338954252,1727089110630,-1699.614138,0.000334,12]
[338954253,1727089110652,-177.97120469,0.00033419,2]
[338954254,1727089110675,-260.06372012,0.00033451,2]
[338954255,1727089110699,-1851.0967881,0.00033451,2]
[338954256,1727089110722,-500.0,0.00033467,14]
[338954257,1727089110745,-500.0,0.00033467,14]
[338954258,1727089110768,-330.14063406,0.00033467,14]
[338954259,1727089110790,-520.55397532,0.00033473,5]
[338954260,1727089110813,-500.0,0.00033473,5]
[338954261,1727089110834,-500.0,0.00033473,5]
[338954262,1727089110857,-152.890812,0.00033479,14]
[338954263,1727089110879,-152.890812,0.00033479,14]
[338954264,1727089110902,-197.46689,0.00033479,14]
[338954265,1727089110925,-197.46689,0.00033479,14]
[338954266,1727089110949,-151.0,0.00033496,14]
[338954267,1727089110973,-333.576202,0.00033496,14]
[338954268,1727089110995,-333.576202,0.00033496,14]
[338954269,1727089111018,-152.890812,0.000335,14]
[338954270,1727089111041,-152.890812,0.000335,14]
[338954271,1727089111064,-197.46689,0.000335,14]
[338954272,1727089111099,-197.46689,0.000335,14]
[338954273,1727089111132,-151.0,0.000335,14]
[338954274,1727089111167,-157.394016,0.000335,14]
[338954275,1727089111203,-333.576202,0.000335,14]
[338954276,1727089111240,-333.576202,0.000335,14]
[338954277,1727089111272,-508.2,0.00033509,3]
[338954278,1727089111306,-456.09,0.00033509,3]
[338954279,1727089111338,-380.08,0.00033509,3]
[338954280,1727089111367,-316.73,0.00033509,3]
[338954281,1727089111399,-532.27106326,0.00033518,7]
[338954282,1727089111433,-271.53947093,0.00033518,7]
[338954283,1727089112073,263.94,0.0003349,3]
[338954284,1727089116567,1542.58065675,0.00033451,2]
[338954285,1727089121140,256.778,0.00032273,32]
[338954286,1727089121237,507.79,0.0003215,4]
[338954287,1727089124077,219.95,0.0003349,3]
[338954288,1727089126573,1445.81339913,0.00033451,2]
[338954289,1727089130902,878.621287,0.00030936,2]
[338954290,1727089131773,878.621287,0.00031621,2]
[338954291,1727089132262,878.621287,0.00032306,2]
[338954292,1727089135415,183.29,0.0003349,3]
[338954293,1727089136585,1204.84449928,0.00033451,2]
[338954294,1727089140624,400.0,0.00033518,2]
[338954295,1727089142496,400.0,0.00033518,2]
[338954296,1727089143169,167.960019,0.00030662,2]
[338954297,1727089145780,152.74,0.0003349,3]
[338954300,1727089209436,937.69215761,0.00029497,2]
[338954301,1727089222805,190.681245,0.00029679,30]
[338954302,1727089237926,500.0,0.00027397,2]
[338954303,1727089239709,200.0,0.000273,120]
[338954307,1727089393011,150.0,0.000216,2]
[338954309,1727089478334,150.0,0.0003,2]
[338954312,1727089518149,3521.43704531,0.0003,2]
[338954314,1727089534473,1012.90726228,0.0003,2]
[338954315,1727089547141,-219.07673951,0.00031112,2]
[338954316,1727089547163,-319.0204031,0.00031183,2]
[338954317,1727089547185,-437.776188,0.00031212,2]
[338954318,1727089547206,-78.21995253,0.00031241,30]
[338954319,1727089548091,-112.46129247,0.00031241,30]
[338954320,1727089548113,-412.3548512,0.00031352,2]
[338954321,1727089604084,-48.5448502,0.00031352,2]
[338954322,1727089604108,-400.0,0.00031567,2]
[338954323,1727089604130,-400.0,0.00031567,2]
[338954324,1727089604151,-7637.56469097,0.00031568,2]
[338954325,1727089632140,-400.0,0.00031567,2]
[338954326,1727089632163,-400.0,0.00031567,2]
[338954327,1727089632189,-4197.48739039,0.00031568,2]
[338954328,1727089633102,-238.90638427,0.00031568,2]
[338954329,1727089640091,-582.31286286,0.00031568,2]
[338954330,1727089642098,-5953.83920528,0.00031568,2]
[338954333,1727089764089,-250.0,0.00030592,2]
[338954334,1727089764112,-4549.84250037,0.00031568,2]
[338954335,1727089772090,-1740.04696586,0.00031568,2]
[338954336,1727089772112,-400.0,0.00031597,2]
[338954337,1727089772134,-400.0,0.00031598,2]
[338954338,1727089772156,-218.888094,0.00031609,2]
[338954339,1727089772176,-282.5111806,0.00031686,2]
[338954340,1727089772196,-3644.565235,0.00031785,2]
[338954341,1727089772225,-161.647785,0.00031842,2]
[338954342,1727089772245,-161.647785,0.00031952,2]
[338954343,1727089772266,-161.647785,0.00032063,2]
[338954344,1727089772288,-161.647785,0.00032173,2]
[338954345,1727089772309,-161.647785,0.00032284,2]
[338954346,1727089772334,-161.647785,0.00032395,2]
[338954347,1727089772357,-500.0,0.0003245,5]
[338954348,1727089772379,-161.647785,0.00032505,2]
[338954349,1727089772400,-161.647785,0.00032616,2]
[338954350,1727089772422,-161.647785,0.00032726,2]
[338954351,1727089772447,-190.681245,0.00032803,30]
[338954352,1727089772471,-161.647785,0.00032837,2]
[338954354,1727089772494,-161.647785,0.00032948,2]
[338954355,1727089776107,500.0,0.00027397,2]
[338954356,1727089805607,500.0,0.0003,14]
[338954357,1727089809922,500.0,0.0003,14]
[338954358,1727089811329,500.0,0.0003,14]
[338954359,1727089811870,500.0,0.0003,14]
[338954360,1727089813843,500.0,0.0003,14]
[338954361,1727089815238,500.0,0.0003,14]
[338954362,1727089817165,151.0,0.0003,120]
[338954395,1727089832305,-736.23740997,0.00033047,3]
[338954398,1727089832348,-27.51259003,0.00033047,3]
[338954400,1727089832357,-408.82263893,0.00033057,2]
[338954517,1727089838555,-190.07762965,0.00033056,7]
[338954520,1727089838566,-151.43934628,0.00033056,7]
[338954522,1727089838578,-221.150398,0.00033056,7]
[338954524,1727089838588,-255.89587497,0.00033056,7]
[338954526,1727089838598,-500.0,0.00033056,7]
[338954528,1727089838607,-500.0,0.00033056,7]
[338954530,1727089838616,-500.0,0.00033056,7]
[338954532,1727089838626,-500.0,0.00033056,7]
[338954534,1727089838636,-407.62566545,0.00033056,7]
[338954536,1727089838645,-97.37840598,0.00033056,7]
[338954543,1727089838703,-402.62159402,0.00033056,7]
[338954545,1727089838713,-940.48130124,0.00033057,21]
[338954547,1727089838723,-2878.80977374,0.00033057,2]
[338954553,1727089838777,-37558.2258198,0.00033057,2]
[338954570,1727089838881,-555.27637671,0.00033057,2]
[338954713,1727089840285,-134152.79947577,0.00033057,2]
[338954716,1727089840301,-85193.57767176,0.00033057,2]
[338954718,1727089840313,-461.03,0.00033057,2]
[338954720,1727089840324,-2721.56587481,0.00033057,2]
[338954749,1727089840595,-209.31290485,0.00033057,2]
[338954768,1727089840772,-1241.75132697,0.00033057,2]
[338954770,1727089840784,-13577.07665511,0.00033057,2]
[338954772,1727089840796,-5704.30446902,0.00033057,2]
[338955017,1727089843375,-533.91361398,0.00032958,2]
[338955019,1727089843385,-10844.28723312,0.00033057,2]
[338955021,1727089843396,-586.6757247,0.00033057,2]
[338955026,1727089843443,-942.90106013,0.00033057,2]
[338955036,1727089843531,-564.24,0.00033057,2]
[338955038,1727089843544,-1914.48578361,0.00033057,2]
[338955055,1727089843651,-117.1214759,0.00033057,2]
[338955300,1727089846374,-335.11788326,0.00033057,2]
[338955305,1727089846419,-661.53768947,0.00033057,2]
[338955308,1727089846431,-1203.98806982,0.00033057,2]
[338955310,1727089846443,-270921.88285185,0.00033057,2]
[338955312,1727089846454,-4873.9266617,0.00033057,2]
[338958667,1727089927320,1820.68,0.00031,100]
[338958668,1727090013661,3985.54,0.0003,2]
[338958673,1727090294223,218.888094,0.00029907,2]
[338958675,1727090334586,500.0,0.00027397,2]
[338958677,1727090476366,5243.34896835,0.00028,30]
[338958679,1727090581059,168.539875,0.00029706,2]
[338958680,1727090590098,24900.0,0.0002998,2]
[338958692,1727090754162,424.31991166,0.0002983,10]
[338958694,1727090825160,-183.01763173,0.00031,100]
[338958695,1727090835153,-619.88964948,0.00031,100]
[338958699,1727090877015,500.0,0.00027397,2]
[338958707,1727090950096,-376.41271879,0.00031,100]
[338958708,1727090950118,-168.539877,0.00031024,2]
[338958709,1727090950140,-225.452998,0.00031158,2]
[338958710,1727090950164,-166.35609,0.0003143,2]
[338958711,1727090950187,-166.35609,0.00031758,2]
[338958712,1727090950208,-225.452998,0.00031843,2]
[338958713,1727090950231,-205.422,0.00031997,31]
[338958714,1727090950256,-166.35609,0.00032085,2]
[338958715,1727090950280,-411.8657486,0.00032398,28]
[338958716,1727090950303,-411.8657486,0.00032398,30]
[338958717,1727090950324,-411.8657486,0.00032398,28]
[338958718,1727090950348,-400.0,0.00032407,2]
[338958719,1727090950371,-411.8657486,0.00032408,28]
[338958720,1727090950397,-411.8657486,0.00032408,21]
[338958721,1727090950425,-411.8657486,0.00032408,21]
[338958722,1727090950460,-411.8657486,0.00032408,21]
[338958723,1727090950489,-411.8657486,0.00032408,21]
[338958724,1727090950510,-153.0,0.00032411,2]
[338958725,1727090950532,-153.0,0.00032411,2]
[338958726,1727090950555,-153.0,0.00032411,2]
[338958727,1727090950576,-166.35609,0.00032413,2]
[338958728,1727090950600,-821.3279064,0.00032428,21]
[338958729,1727090950622,-411.8657486,0.00032428,21]
[338958730,1727090950642,-411.8657486,0.00032428,28]
[338958731,1727090950663,-411.8657486,0.00032478,28]
[338958732,1727090950684,-411.8657486,0.00032478,21]
[338958733,1727090950706,-411.8657486,0.00032478,28]
[338958734,1727090950727,-225.452998,0.00032528,2]
[338958735,1727090950748,-166.35609,0.00032741,2]
[338958736,1727090950770,-1000.0,0.00032786,10]
[338958737,1727090950800,-192.98824742,0.00032956,2]
[338958738,1727090950823,-166.35609,0.00033068,2]
[338958739,1727090950843,-208.56563938,0.0003315,13]
[338958740,1727090950864,-151.0,0.00033151,120]
[338958741,1727090950884,-500.0,0.00033165,2]
[338958742,1727090950905,-3580.93252357,0.00033242,2]
[338959084,1727091046638,-68.87662772,0.00033388,3]
[338961678,1727091110882,167.960019,0.00031669,2]
[338961679,1727091117242,1707.98913647,0.00031976,2]
[338961680,1727091382286,8300.0,0.000252,2]
[338961681,1727091412076,500.0,0.00027397,2]
[338961694,1727091968515,498.215542,0.00027397,2]
[338961695,1727091998626,2000.0,0.0003,2]
[338961704,1727092008747,2000.0,0.0003,3]
[338961708,1727092035126,-169.089722,0.00030465,2]
[338961709,1727092035149,-400.0,0.00030531,2]
[338961710,1727092035172,-226.56536968,0.00030531,2]
[338961711,1727092036815,2000.0,0.0003,4]
[338961712,1727092039108,-173.43463032,0.00030531,2]
[338961713,1727092039129,-15.77498276,0.00030532,2]
[338961714,1727092054363,2000.0,0.0003,5]
[338961715,1727092095785,2000.0,0.0003,6]
[338961716,1727092147120,-189.8976151,0.00030466,2]
[338961717,1727092147144,-400.0,0.00030531,2]
[338961718,1727092147166,-400.0,0.00030531,2]
[338961719,1727092147189,-2307.66381828,0.00030532,2]
[338961774,1727092232726,-326.798049,0.0003045,2]
[338961776,1727092232735,-273.201951,0.00030531,2]
[338962213,1727092240606,-126.798049,0.00030531,2]
[338962215,1727092240616,-400.0,0.00030531,2]
[338962217,1727092240625,-281.5922495,0.00030631,2]
[338962219,1727092240635,-11363.37978708,0.00031155,2]
[338962223,1727092240659,-11442.28499205,0.00031155,2]
[338962225,1727092240670,-2094.33522087,0.00031155,2]
[338962227,1727092240680,-164.338,0.00032273,32]
[338962229,1727092240689,-500.60265573,0.00032533,5]
[338962231,1727092240698,-500.0,0.00032533,5]
[338962233,1727092240709,-2579.04397779,0.00032675,2]
[338962235,1727092240718,-500.0,0.0003268,5]
[338962237,1727092240727,-500.0,0.0003268,5]
[338962239,1727092240737,-499.486284,0.0003268,5]
[338962241,1727092240746,-500.0,0.0003268,2]
[338962243,1727092240755,-500.0,0.00032748,2]
[338962245,1727092240764,-500.0,0.00032748,2]
[338962247,1727092240774,-500.0,0.00032748,2]
[338962249,1727092240783,-500.0,0.00032748,2]
[338962251,1727092240793,-500.0,0.00032748,2]
[338962253,1727092240802,-500.0,0.00032748,2]
[338962255,1727092240811,-500.0,0.00032748,2]
[338962257,1727092240820,-355.81997915,0.00032748,2]
[338962259,1727092240830,-500.0,0.00032748,2]
[338962261,1727092240841,-264.47313246,0.00032748,2]
[338962264,1727092240853,-235.52686754,0.00032748,2]
[338962266,1727092240862,-500.0,0.00032748,2]
[338962268,1727092240871,-500.0,0.00032748,2]
[338962270,1727092240880,-500.0,0.00032748,2]
[338962272,1727092240890,-500.0,0.00032748,2]
[338962274,1727092240899,-314.49313246,0.00032748,2]
[338962276,1727092240911,-185.50686754,0.00032748,2]
[338962278,1727092240920,-500.0,0.00032748,2]
[338962280,1727092240929,-500.0,0.00032748,2]
[338962282,1727092240938,-3659.227934,0.00032749,2]
[338962284,1727092240947,-500.0,0.00032775,5]
[338962286,1727092240957,-500.0,0.00032775,5]
[338962288,1727092240966,-1100.0,0.00032786,10]
[338962290,1727092240975,-1000.0,0.00032876,30]
[338962292,1727092240985,-560.0,0.00032888,2]
[338962294,1727092240994,-3659.227934,0.0003299,2]
[338962296,1727092241003,-1000.0,0.00033,30]
[338962298,1727092241012,-151.0,0.00033119,7]
[338962300,1727092241021,-1000.0,0.0003315,120]
[338962302,1727092241031,-1000.0,0.0003315,31]
[338962304,1727092241040,-498.215542,0.00033165,2]
[338962306,1727092241049,-500.0,0.00033228,5]
[338962308,1727092241059,-500.0,0.00033228,2]
[338962310,1727092241069,-222.0,0.0003338,28]
[338962312,1727092241078,-337.89,0.00033404,3]
[338962313,1727092241087,-281.58,0.00033404,3]
[338962315,1727092241095,-260.812821,0.00033413,7]
[338962317,1727092241105,-179663.44096747,0.00033414,2]
[338962568,1727092243734,-8364.79907927,0.00033414,2]
[338962916,1727092247129,-88.4061213,0.00033414,2]
[338965839,1727092459920,151.0,0.0003,120]
[338965840,1727092500116,500.0,0.00027397,2]
[338965848,1727092841951,163.399024,0.00029854,2]
[338965853,1727093037047,3000.0,0.00029906,2]
[338965854,1727093087369,482.879221,0.00027397,2]
[338965857,1727093198181,267.82778535,0.00029,2]
[338965858,1727093227324,-155.982362,0.00031274,2]
[338965859,1727093227354,-421.628864,0.00031364,2]
[338965860,1727093227383,-250.0,0.00031374,2]
[338965861,1727093227412,-16.71869661,0.00031417,2]
[338965862,1727093417878,167.960019,0.00030032,2]
[338966081,1727093438005,-400.0,0.00030756,2]
[338966086,1727093438184,-400.0,0.00030756,2]
[338966089,1727093438194,-8085.3833668,0.00030757,2]
[338966092,1727093438206,-16814.6166332,0.00030757,2]
[338966094,1727093438215,-161.695053,0.00030877,2]
[338966096,1727093438225,-161.695053,0.00031414,2]
[338966098,1727093438234,-161.695053,0.0003195,2]
[338966100,1727093438244,-421.628864,0.00032049,2]
[338966102,1727093438257,-151.0,0.00032219,120]
[338966104,1727093438268,-161.695053,0.00032486,2]
[338966106,1727093438278,-2256.66348054,0.00032733,2]
[338966108,1727093438287,-421.628864,0.00032734,2]
[338966110,1727093438297,-1000.0,0.00032786,10]
[338966112,1727093438306,-500.0,0.00032832,2]
[338966114,1727093438316,-428.42444213,0.00032832,2]
[338966116,1727093438326,-201.57256343,0.00032833,5]
[338966118,1727093438335,-500.0,0.00032833,5]
[338966120,1727093438346,-500.0,0.00032833,5]
[338966122,1727093438355,-176.2442662,0.00032833,5]
[338966124,1727093438365,-500.0,0.00032833,5]
[338966126,1727093438374,-160.08733075,0.00032833,5]
[338966261,1727093439808,-339.91266925,0.00032833,5]
[338966263,1727093439818,-500.36347851,0.00032833,5]
[338966265,1727093439827,-500.0,0.00032833,5]
[338966267,1727093439836,-212.87359157,0.00032876,30]
[338966269,1727093439845,-560.0,0.00033123,2]
[338966271,1727093439854,-482.879221,0.00033165,2]
[338966273,1727093439863,-7140.47594759,0.00033224,2]
[338966275,1727093439872,-500.0,0.00033381,5]
[338966277,1727093439881,-500.0,0.00033381,5]
[338966279,1727093439890,-370.61544553,0.00033381,5]
[338966281,1727093439899,-1000.0,0.000334,60]
[338966283,1727093439909,-1204.84449928,0.00033413,2]
[338966285,1727093439917,-428.0,0.0003342,28]
[338966287,1727093439926,-156.98,0.00033425,3]
[338966289,1727093439936,-162.52,0.00033425,3]
[338966291,1727093439945,-242.63639196,0.0003343,2]
[338966293,1727093439954,-268.14151515,0.00033434,7]
[338966295,1727093439963,-726.73555096,0.00033434,21]
[338966297,1727093439972,-40699.406607,0.00033435,2]
[338966609,1727093442965,-283.72,0.00033425,3]
[338966611,1727093442975,-414570.868575,0.00033435,2]
[338968069,1727093506532,3226.90779146,0.0003,10]
[338968070,1727093506555,1651.60688499,0.0003,10]
[338968071,1727093506578,4361.90762355,0.0003,10]
[338968076,1727093660127,151.0,0.0003,120]
[338968081,1727093690799,10000.0,0.0003,2]
[338968082,1727093698265,10000.0,0.0003,2]
[338968083,1727093708049,10000.0,0.0003,2]
[338968084,1727093714717,10000.0,0.0003,2]
[338968086,1727093723855,2000.0,0.00025204,21]
[338968087,1727093725984,8518.9,0.0003,2]
[338968117,1727094343159,-873.61305,0.00026,21]
[338968118,1727094343192,-1000.0,0.00028,21]
[338968119,1727094343231,-163.3990252,0.00029083,2]
[338968120,1727094343270,-323.317973,0.00029349,2]
[338968121,1727094343304,-169.501342,0.00029458,2]
[338968122,1727094343335,-446.7762197,0.00029554,2]
[338968123,1727094343368,-1928.35709646,0.0003,21]
[338968127,1727094427205,-401.70006862,0.00027397,2]
[338968128,1727094445483,-32.89123038,0.00027397,2]
[338968129,1727094445504,-178.19131186,0.00028831,2]
[338968131,1727094546095,-187.712533,0.00027797,2]
[338968132,1727094546117,-187.712533,0.00027873,2]
[338968133,1727094546137,-187.712533,0.00027949,2]
[338968134,1727094546158,-187.712533,0.00028026,2]
[338968135,1727094546178,-187.712533,0.00028102,2]
[338968136,1727094546198,-187.712533,0.00028178,2]
[338968137,1727094546220,-187.712533,0.00028254,2]
[338968138,1727094546240,-187.712533,0.0002833,2]
[338968139,1727094546261,-187.712533,0.00028407,2]
[338968140,1727094546281,-187.712533,0.00028483,2]
[338968141,1727094546304,-187.712533,0.00028559,2]
[338968142,1727094546324,-187.712533,0.00028635,2]
[338968143,1727094546346,-187.712533,0.00028712,2]
[338968144,1727094546370,-187.712533,0.00028788,2]
[338968145,1727094546389,-300.0,0.00028831,2]
[338968146,1727094546411,-300.0,0.00028831,2]
[338968147,1727094546431,-19981.9422111,0.00028832,2]
[338968148,1727094546452,-187.712533,0.00028864,2]
[338968149,1727094546474,-187.712533,0.0002894,2]
[338968150,1727094546494,-187.712533,0.00029017,2]
[338968151,1727094546514,-187.712533,0.00029093,2]
[338968152,1727094546535,-187.712533,0.00029169,2]
[338968153,1727094546558,-500.0,0.00029218,2]
[338968154,1727094546579,-172.71837702,0.00029218,2]
[338968155,1727094546600,-500.0,0.00029218,2]
[338968156,1727094546621,-500.0,0.00029218,2]
[338968157,1727094546642,-500.0,0.00029218,2]
[338968158,1727094546663,-500.0,0.00029218,2]
[338968159,1727094546684,-500.0,0.00029218,2]
[338968160,1727094546705,-500.0,0.00029218,2]
[338968161,1727094546726,-24900.0,0.00029219,2]
[338968162,1727094546746,-187.712533,0.00029245,2]
[338968163,1727094546767,-250.0,0.00029276,2]
[338968164,1727094546787,-500.0,0.000293,5]
[338968165,1727094546816,-160.15883078,0.000293,5]
[338968166,1727094546837,-71.64290354,0.0003,21]
[338968167,1727094546857,-151.0,0.0003,120]
[338968168,1727094546877,-323.317973,0.00030034,2]
[338968927,1727094639996,-323.317973,0.00030719,2]
[338968929,1727094640006,-156.42594893,0.00030898,2]
[338968931,1727094640015,-500.7431845,0.000311,5]
[338968932,1727094640024,-500.0,0.000311,5]
[338968934,1727094640033,-500.0,0.000311,5]
[338968936,1727094640043,-312.084,0.00031919,30]
[338968938,1727094640053,-255.6061,0.00031939,30]
[338968942,1727094640066,-400.0,0.00032099,2]
[338968943,1727094640076,-400.0,0.00032099,2]
[338968945,1727094640085,-500.0,0.000321,5]
[338968947,1727094640095,-500.0,0.000321,5]
[338968949,1727094640105,-151.0,0.00032219,120]
[338968952,1727094640114,-1000.0,0.00032464,10]
[338968953,1727094640124,-5360.70423558,0.00032893,2]
[338968956,1727094640134,-151.0,0.00033151,120]
[338968958,1727094640144,-434.591299,0.00033165,2]
[338968960,1727094640154,-1000.0,0.00033286,10]
[338968962,1727094640163,-151.32249973,0.00033348,2]
[338968964,1727094640172,-5360.70423558,0.00033368,2]
[338968965,1727094640181,-151.32249972,0.0003338,2]
[338968967,1727094640190,-151.32249972,0.00033413,2]
[338968969,1727094640200,-214.94,0.00033428,3]
[338968971,1727094640210,-644.86,0.00033428,3]
[338968973,1727094640219,-1204.84449928,0.00033434,2]
[338968975,1727094640228,-524.44,0.00033435,2]
[338968977,1727094640238,-323.06951838,0.00033437,7]
[338968979,1727094640247,-408.07981967,0.00033437,7]
[338968981,1727094640257,-192.40129268,0.00033437,7]
[338968983,1727094640267,-224.77760124,0.00033437,7]
[338968985,1727094640276,-500.0,0.00033437,7]
[338968987,1727094640285,-500.0,0.00033437,7]
[338968988,1727094640294,-495.01397288,0.00033437,7]
[338968990,1727094640303,-398.44269713,0.00033437,7]
[338968993,1727094640313,-500.0,0.00033437,7]
[338968995,1727094640322,-225.89609487,0.00033437,7]
[338968996,1727094640332,-500.0,0.00033437,7]
[338968998,1727094640341,-500.0,0.00033437,7]
[338969001,1727094640350,-500.0,0.00033437,7]
[338969003,1727094640360,-11325.63004,0.00033438,2]
[338969005,1727094640370,-123820.156782,0.00033438,5]
[338969007,1727094640380,-6328.11627366,0.00033438,5]
[338969009,1727094640390,-151.32249972,0.00033445,2]
[338969010,1727094640399,-82546.771188,0.00033449,5]
[338969012,1727094640408,-4218.74418244,0.00033449,5]
[338969014,1727094640418,-33222.47071955,0.00033459,2]
[338969019,1727094640456,-1658.77657503,0.00033459,2]
[338969022,1727094640467,-46437.1465361,0.00033459,2]
[338969024,1727094640478,-697.055172,0.00033459,2]
[338969302,1727094643067,-1754.8937024,0.00033459,2]
[338969304,1727094643078,-10426.04840095,0.00033459,2]
[338969306,1727094643087,-151.0,0.00033459,14]
[338969308,1727094643096,-939.329216,0.00033459,14]
[338969310,1727094643106,-939.329216,0.00033459,14]
[338969312,1727094643115,-760.429896,0.00033459,14]
[338969314,1727094643125,-760.429896,0.00033459,14]
[338969316,1727094643135,-151.0,0.00033459,14]
[338969318,1727094643144,-526.167586,0.00033459,14]
[338969320,1727094643154,-151.0,0.00033459,14]
[338969322,1727094643163,-526.167586,0.00033459,14]
[338969324,1727094643173,-151.0,0.00033459,14]
[338969326,1727094643182,-151.0,0.00033459,14]
[338969327,1727094643192,-151.0,0.00033459,14]
[338969329,1727094643201,-386.354842,0.00033459,14]
[338969331,1727094643211,-299.386847,0.00033459,14]
[338969334,1727094643220,-386.354842,0.00033459,14]
[338969337,1727094643230,-151.0,0.00033459,14]
[338969339,1727094643239,-151.0,0.00033459,14]
[338969341,1727094643249,-151.0,0.00033459,14]
[338969343,1727094643259,-151.0,0.00033459,14]
[338969345,1727094643268,-166.439584,0.00033459,14]
[338969347,1727094643277,-166.439584,0.00033459,14]
[338969349,1727094643286,-167.467842,0.00033459,14]
[338969351,1727094643296,-167.467842,0.00033459,14]
[338969353,1727094643305,-151.0,0.00033459,14]
[338969355,1727094643315,-410.375106,0.00033459,14]
[338969357,1727094643325,-410.375106,0.00033459,14]
[338969359,1727094643334,-1313.132762,0.00033459,14]
[338969361,1727094643344,-151.32249972,0.00033477,2]
[338969363,1727094643354,-611.40314185,0.00033479,2]
[338969365,1727094643364,-346.95,0.000335,30]
[338969367,1727094643374,-500.0,0.00033518,14]
[338969369,1727094643383,-500.0,0.00033518,14]
[338969370,1727094643392,-500.0,0.00033518,14]
[338969372,1727094643402,-492.41365506,0.00033518,14]
[338969374,1727094643411,-151.0,0.0003354,14]
[338969376,1727094643421,-151.829217,0.0003354,14]
[338969378,1727094643431,-151.0,0.0003354,14]
[338969380,1727094643440,-151.0,0.0003354,14]
[338969382,1727094643450,-151.0,0.0003354,14]
[338969384,1727094643459,-151.0,0.0003354,14]
[338969386,1727094643469,-151.0,0.0003354,14]
[338969388,1727094643478,-151.0,0.0003354,14]
[338969390,1727094643493,-151.0,0.0003354,14]
[338969392,1727094643502,-500.0,0.0003354,2]
[338969393,1727094643511,-795.48522132,0.00033542,7]
[338969395,1727094643521,-41273.385594,0.00033567,5]
[338969397,1727094643531,-2109.37209122,0.00033567,5]
[338969399,1727094643541,-410.375106,0.00033567,14]
[338969401,1727094643551,-410.375106,0.00033567,14]
[338969403,1727094643564,-1313.132762,0.00033567,14]
[338969405,1727094643575,-500.0,0.00033573,5]
[338969407,1727094643585,-500.83800138,0.00033573,5]
[338969409,1727094643595,-500.67772064,0.00033573,5]
[338969411,1727094643605,-500.0,0.00033573,5]
[338969413,1727094643615,-500.0,0.00033573,5]
[338969415,1727094643626,-500.58397951,0.00033573,5]
[338969417,1727094643635,-500.0,0.00033573,5]
[338969419,1727094643644,-500.0,0.00033573,2]
[338969421,1727094643653,-500.0,0.00033573,5]
[338969423,1727094643662,-500.0,0.00033573,5]
[338969424,1727094643672,-1169.849602,0.00033577,14]
[338969426,1727094643681,-1169.849602,0.00033577,14]
[338969428,1727094643690,-151.0,0.00033577,14]
[338969430,1727094643699,-151.0,0.00033577,14]
[338969432,1727094643708,-207.765898,0.00033577,14]
[338969434,1727094643717,-1192.566039,0.00033577,14]
[338969436,1727094643726,-284.227233,0.00033577,14]
[338969438,1727094643735,-284.227233,0.00033577,14]
[338969440,1727094643744,-663.130596,0.00033577,14]
[338969442,1727094643753,-663.130596,0.00033577,14]
[338969444,1727094643763,-151.0,0.00033577,14]
[338969446,1727094643773,-151.0,0.00033577,14]
[338969447,1727094643783,-151.0,0.00033577,14]
[338969449,1727094643792,-240.612314,0.00033577,14]
[338969451,1727094643801,-445.462522,0.00033577,14]